bitfinex-derivatives/quotes_BTCF0:USTF0_20220102
["timestamp","ask_amount","ask_price","bid_price","bid_amount"]
[1641142333355,0.5962616,47654.0,47653.0,0.14033567]
[1641142333553,0.6060556,47654.0,47653.0,0.14033567]
[1641142333753,0.009794,47654.0,47653.0,0.14033567]
[1641142335159,0.09923935,47654.0,47653.0,0.14033567]
[1641142335361,0.19182335,47654.0,47648.0,1.5507507]
[1641142335961,0.102378,47654.0,47648.0,1.5507507]
[1641142336163,0.5963213,47651.0,47648.0,1.5507507]
[1641142337363,0.5963213,47651.0,47649.0,0.01192486]
[1641142337562,0.5963213,47651.0,47648.0,0.14033567]
[1641142338364,0.5963213,47652.0,47648.0,1.5507507]
[1641142339064,0.5963213,47652.0,47649.0,1.41041503]
[1641142340066,0.5963213,47652.0,47648.0,1.5507507]
[1641142346976,0.5963213,47651.0,47648.0,0.14033567]
[1641142347674,0.5963213,47651.0,47650.0,0.18]
[1641142347876,1.3078104,47658.0,47650.0,0.24494]
[1641142348076,0.02098371,47669.0,47657.0,0.18]
[1641142348374,0.59484403,47666.0,47655.0,0.18]
[1641142348574,0.59484403,47666.0,47661.0,0.18]
[1641142348774,0.59484403,47666.0,47661.0,0.06972]
[1641142349175,0.009794,47665.0,47661.0,0.06972]
[1641142350675,0.02098592,47664.0,47659.0,0.14033567]
[1641142350976,0.009794,47665.0,47659.0,0.14033567]
[1641142351177,0.03077952,47665.0,47659.0,0.14033567]
[1641142351881,0.05352504,47664.0,47659.0,0.14033567]
[1641142352280,0.03077952,47665.0,47659.0,0.14033567]
[1641142352682,0.16131979,47668.0,47660.0,0.18]
[1641142352881,1.3078104,47664.0,47662.0,0.82700328]
[1641142353684,1.3078104,47664.0,47660.0,0.18]
[1641142353884,1.46913019,47668.0,47659.0,0.20118567]
[1641142354286,0.02098538,47665.0,47659.0,0.20118567]
[1641142354486,0.02098538,47665.0,47659.0,0.14033567]
[1641142354786,1.44814607,47668.0,47660.0,0.18]
[1641142355286,1.44814607,47668.0,47666.0,0.82926132]
[1641142357289,0.14033567,47668.0,47666.0,0.82926132]
[1641142357491,0.14033567,47668.0,47666.0,0.59287125]
[1641142358103,0.32033567,47668.0,47666.0,0.59287125]
[1641142358306,0.02098488,47667.0,47666.0,0.59287125]
[1641142360209,1.33270172,47667.0,47666.0,0.59287125]
[1641142361110,0.02098488,47667.0,47666.0,0.59287125]
[1641142361510,0.20098488,47667.0,47666.0,0.59287125]
[1641142362010,0.02098488,47667.0,47666.0,0.59287125]
[1641142363012,1.33268421,47667.0,47666.0,0.59287125]
[1641142363615,0.02098488,47667.0,47666.0,0.59287125]
[1641142363820,0.02098488,47667.0,47665.0,0.59287125]
[1641142364615,0.02098488,47667.0,47664.0,0.59287125]
[1641142365317,0.18,47666.0,47664.0,0.59287125]
[1641142365518,0.23505955,47666.0,47664.0,0.59287125]
[1641142366117,0.05505955,47666.0,47664.0,0.59287125]
[1641142366518,0.05505955,47666.0,47663.0,0.59287125]
[1641142367118,0.001,47664.0,47663.0,0.59287125]
[1641142367819,0.02198667,47664.0,47663.0,0.59287125]
[1641142368319,0.02198667,47664.0,47662.0,0.59287125]
[1641142368522,0.181,47663.0,47662.0,0.59287125]
[1641142369120,0.181,47663.0,47660.0,0.59287125]
[1641142369321,0.001,47661.0,47660.0,0.59287125]
[1641142371328,1.31287693,47661.0,47660.0,0.59287125]
[1641142371726,1.4532126,47661.0,47660.0,0.59287125]
[1641142371929,0.32133567,47661.0,47660.0,0.59287125]
[1641142372126,1.42633567,47661.0,47660.0,0.59287125]
[1641142372527,0.32133567,47661.0,47660.0,0.59287125]
[1641142373327,0.32133567,47661.0,47659.0,0.59287125]
[1641142373629,0.001,47660.0,47659.0,0.59287125]
[1641142374026,1.31291311,47660.0,47659.0,0.59287125]
[1641142374526,1.33390232,47660.0,47659.0,0.59287125]
[1641142374727,1.40718632,47660.0,47648.0,1.41041503]
[1641142374928,0.18,47658.0,47657.0,0.82655654]
[1641142375828,0.32033567,47658.0,47648.0,1.41041503]
[1641142376029,0.40979183,47658.0,47656.0,0.35457124]
[1641142376430,1.51479183,47658.0,47656.0,0.35457124]
[1641142376631,0.08297617,47657.0,47656.0,0.35457124]
[1641142377032,0.17243233,47657.0,47655.0,0.35457124]
[1641142377230,1.27743233,47657.0,47655.0,0.35457124]
[1641142377431,0.02099106,47656.0,47655.0,0.35457124]
[1641142377634,1.21544722,47656.0,47655.0,0.35457124]
[1641142379046,1.12599106,47656.0,47642.0,0.2367507]
[1641142379245,0.18,47648.0,47641.0,0.2367507]
[1641142379445,0.26666,47648.0,47641.0,0.2367507]
[1641142379644,0.0209949,47643.0,47641.0,0.2367507]
[1641142380747,0.0209949,47643.0,47636.0,0.97036004]
[1641142380948,0.0209949,47643.0,47635.0,0.18]
[1641142381146,0.14033567,47644.0,47635.0,0.18]
[1641142381352,0.14033567,47644.0,47639.0,0.18]
[1641142381946,0.14033567,47644.0,47637.0,0.18]
[1641142382347,0.14033567,47644.0,47638.0,0.01192682]
[1641142383247,0.14033567,47644.0,47637.0,0.18]
[1641142383647,0.14033567,47644.0,47640.0,0.18]
[1641142383850,0.14033567,47644.0,47642.0,0.18]
[1641142384049,0.14033567,47644.0,47640.0,0.2652]
[1641142384449,0.59639144,47643.0,47640.0,0.0852]
[1641142384653,0.59639144,47643.0,47640.0,0.2652]
[1641142385250,0.59639144,47643.0,47640.0,0.0852]
[1641142385653,0.59639144,47643.0,47640.0,0.2652]
[1641142385853,0.73672711,47644.0,47640.0,0.2652]
[1641142386853,0.73672711,47644.0,47640.0,0.0852]
[1641142387053,0.73672711,47644.0,47639.0,1.41999637]
[1641142387454,0.73672711,47644.0,47640.0,0.0119265]
[1641142387856,0.73672711,47644.0,47639.0,1.41999637]
[1641142389656,0.3578312,47642.0,47638.0,1.41999637]
[1641142390056,0.3578312,47642.0,47639.0,0.01192657]
[1641142391464,0.3578312,47642.0,47641.0,0.18]
[1641142391864,0.3578312,47642.0,47641.0,0.19192657]
[1641142392564,0.14033567,47644.0,47641.0,1.61192294]
[1641142392966,0.14033567,47644.0,47642.0,0.01192657]
[1641142393766,0.14033567,47644.0,47643.0,1.41999637]
[1641142394566,0.14033567,47644.0,47643.0,1.43192294]
[1641142394967,0.14033567,47644.0,47643.0,1.41999637]
[1641142395571,0.3578312,47646.0,47643.0,1.4319217]
[1641142395771,0.3578312,47646.0,47645.0,0.18]
[1641142397581,0.59639144,47648.0,47645.0,0.18]
[1641142397582,0.3578312,47647.0,47645.0,0.18]
[1641142398181,0.3578312,47651.0,47645.0,0.18]
[1641142398385,0.3578312,47651.0,47649.0,0.18]
[1641142398584,0.3578312,47651.0,47649.0,0.25989]
[1641142399287,0.3578312,47651.0,47650.0,0.18]
[1641142399484,0.3578312,47652.0,47650.0,0.18]
[1641142399684,0.3578312,47652.0,47651.0,0.18]
[1641142400187,0.3578312,47652.0,47650.0,0.14033567]
[1641142400384,0.3578312,47654.0,47651.0,0.18]
[1641142400785,0.3578312,47654.0,47653.0,0.18]
[1641142401184,0.3578312,47654.0,47650.0,0.14033567]
[1641142402185,0.3578312,47654.0,47650.0,0.32033567]
[1641142402586,0.3578312,47653.0,47650.0,0.32033567]
[1641142402785,0.3578312,47653.0,47650.0,0.14033567]
[1641142403887,0.3578312,47653.0,47645.0,0.14033567]
[1641142404290,0.3578312,47651.0,47645.0,0.14033567]
[1641142405187,0.59639144,47652.0,47645.0,0.14033567]
[1641142405591,0.59639144,47651.0,47645.0,0.32033567]
[1641142405789,0.59639144,47651.0,47645.0,0.14033567]
[1641142406592,0.59639144,47651.0,47644.0,0.18]
[1641142407391,0.59639144,47651.0,47641.0,1.41805549]
[1641142407791,0.59639144,47651.0,47644.0,0.18]
[1641142407991,0.73672711,47651.0,47641.0,1.41805549]
[1641142408191,0.73672711,47651.0,47644.0,0.18]
[1641142408392,0.73672711,47651.0,47642.0,0.01192545]
[1641142408594,0.59639144,47650.0,47642.0,0.01192545]
[1641142408792,0.59639144,47650.0,47640.0,1.41805549]
[1641142409192,0.59639144,47650.0,47644.0,0.18]
[1641142411309,0.14033567,47651.0,47644.0,0.18]
[1641142411310,0.73672711,47651.0,47644.0,0.18]
[1641142413110,0.59639144,47650.0,47644.0,0.18]
[1641142417515,0.35762621,47648.0,47644.0,0.18]
[1641142418316,0.59639144,47650.0,47644.0,0.18]
[1641142419419,0.59639144,47650.0,47647.0,0.18]
[1641142419622,0.35762297,47649.0,47647.0,0.18]
[1641142421120,0.73672711,47651.0,47647.0,0.18]
[1641142421326,0.59639144,47649.0,47647.0,0.18]
[1641142422523,0.59639144,47649.0,47646.0,1.41805549]
[1641142422722,0.59639144,47650.0,47646.0,1.41805549]
[1641142423523,0.59639144,47649.0,47645.0,1.41805549]
[1641142424222,0.59639144,47649.0,47644.0,1.41805549]
[1641142424423,0.59639144,47648.0,47644.0,1.41805549]
[1641142425124,0.59639144,47648.0,47643.0,1.41805549]
[1641142426125,0.009794,47647.0,47643.0,1.41805549]
[1641142426329,0.18,47644.0,47642.0,1.41805549]
[1641142426524,0.18,47644.0,47635.0,1.51618887]
[1641142426525,0.02099517,47643.0,47635.0,1.51618887]
[1641142426724,0.009794,47642.0,47635.0,1.51618887]
[1641142427525,0.3578481,47638.0,47635.0,1.51618887]
[1641142427724,0.3578481,47638.0,47633.0,0.14033567]
[1641142428125,0.3578481,47638.0,47630.0,0.97036004]
[1641142428325,0.3578481,47638.0,47634.0,0.01192759]
[1641142428526,0.3578481,47638.0,47631.0,0.13120329]
[1641142428725,0.3578481,47637.0,47631.0,0.1192757]
[1641142428926,0.3578481,47637.0,47632.0,0.1192757]
[1641142429226,0.3578481,47637.0,47633.0,0.0119276]
[1641142429426,0.3676421,47637.0,47633.0,0.0119276]
[1641142429828,0.0209984,47635.0,47633.0,0.0119276]
[1641142430127,0.14033567,47634.0,47627.0,1.51618887]
[1641142430525,0.49818377,47634.0,47624.0,1.51618887]
[1641142430926,0.49818377,47634.0,47628.0,0.13121171]
[1641142431127,0.49818377,47634.0,47629.0,0.18]
[1641142431528,0.49818377,47634.0,47630.0,0.19192834]
[1641142431726,0.49818377,47634.0,47630.0,0.31121171]
[1641142432126,0.49818377,47634.0,47630.0,0.13121171]
[1641142432327,0.49818377,47634.0,47631.0,0.11928337]
[1641142432530,0.49818377,47634.0,47631.0,0.13121171]
[1641142432728,0.14033567,47634.0,47632.0,0.01192834]
[1641142433330,0.14033567,47634.0,47629.0,0.01192834]
[1641142433630,0.3578481,47633.0,47630.0,1.42107068]
[1641142434232,0.3578481,47633.0,47630.0,1.43299883]
[1641142434431,0.3578481,47633.0,47631.0,0.01192815]
[1641142436432,0.5378481,47633.0,47631.0,0.01192815]
[1641142437031,0.5378481,47633.0,47630.0,1.42107068]
[1641142437234,0.3578481,47633.0,47630.0,1.42107068]
[1641142437434,0.02099996,47632.0,47630.0,1.42107068]
[1641142438135,0.009794,47631.0,47629.0,1.42107068]
[1641142438334,0.18,47630.0,47629.0,1.42107068]
[1641142438834,0.26948851,47630.0,47624.0,1.42107068]
[1641142439033,0.08948851,47630.0,47624.0,1.42107068]
[1641142440139,0.03079569,47631.0,47619.0,0.97036004]
[1641142440140,0.14033567,47628.0,47622.0,1.42107068]
[1641142440339,0.59655984,47627.0,47622.0,1.42107068]
[1641142440938,0.14033567,47628.0,47621.0,1.42107068]
[1641142441135,0.08948851,47627.0,47621.0,1.42107068]
[1641142441535,0.26948851,47627.0,47621.0,1.42107068]
[1641142441740,0.08948851,47627.0,47621.0,1.42107068]
[1641142443636,0.14033567,47628.0,47621.0,1.60107068]
[1641142443836,1.31205095,47633.0,47626.0,0.07855]
[1641142444038,1.45238662,47634.0,47628.0,0.18]
[1641142444237,1.45238662,47634.0,47627.0,0.15226457]
[1641142444840,1.45238662,47634.0,47629.0,0.0119289]
[1641142445040,1.45238662,47634.0,47628.0,1.43299958]
[1641142445242,0.35792104,47631.0,47628.0,1.43299958]
[1641142445640,0.35792104,47631.0,47630.0,0.0119289]
[1641142445843,0.35792104,47631.0,47629.0,0.1919289]
[1641142446141,0.35792104,47631.0,47630.0,0.0119289]
[1641142446541,0.35792104,47632.0,47630.0,1.43299958]
[1641142446940,0.35792104,47632.0,47631.0,0.0119289]
[1641142447142,0.35792104,47632.0,47630.0,1.42107068]
[1641142447339,0.35792104,47632.0,47627.0,0.14033567]
[1641142447542,0.14033567,47634.0,47627.0,0.14033567]
[1641142447947,0.14033567,47634.0,47628.0,0.0119286]
[1641142448143,0.35792104,47632.0,47629.0,1.41780646]
[1641142449044,0.35792104,47631.0,47628.0,1.41780646]
[1641142450548,0.35792104,47630.0,47628.0,1.41780646]
[1641142451445,0.14033567,47634.0,47628.0,0.35443547]
[1641142451645,1.31205095,47652.0,47633.0,0.18]
[1641142451846,1.31205095,47652.0,47642.0,0.18]
[1641142452045,1.31205095,47652.0,47648.0,0.18]
[1641142452245,1.31205095,47652.0,47651.0,0.28067134]
[1641142453247,0.18,47666.0,47651.0,0.28067134]
[1641142453248,1.31205095,47662.0,47651.0,0.28067134]
[1641142454147,1.31205095,47662.0,47657.0,0.14033567]
[1641142454548,0.0894529,47661.0,47657.0,0.14033567]
[1641142455452,0.0894529,47663.0,47657.0,0.14033567]
[1641142455850,0.18,47662.0,47657.0,0.14033567]
[1641142456051,0.0894529,47663.0,47657.0,0.14033567]
[1641142456651,0.009794,47664.0,47657.0,0.14033567]
[1641142456850,1.45238662,47668.0,47657.0,0.14033567]
[1641142457450,0.08945211,47663.0,47657.0,0.14033567]
[1641142458452,0.08945211,47666.0,47657.0,0.14033567]
[1641142458653,0.18,47665.0,47657.0,0.14033567]
[1641142459469,0.59496046,47661.0,47657.0,0.14033567]
[1641142459671,0.18,47658.0,47657.0,0.14033567]
[1641142461572,0.77496046,47658.0,47657.0,0.14033567]
[1641142461772,0.77496046,47658.0,47639.0,0.59072578]
[1641142461975,0.18,47650.0,47639.0,0.59072578]
[1641142462171,0.26676,47650.0,47642.0,0.14033567]
[1641142462573,0.08676,47650.0,47642.0,0.14033567]
[1641142462971,0.26676,47650.0,47642.0,0.14033567]
[1641142463174,0.08676,47650.0,47642.0,0.14033567]
[1641142464174,0.49737024,47652.0,47642.0,0.14033567]
[1641142465374,0.14033567,47652.0,47642.0,0.14033567]
[1641142465773,0.18,47651.0,47642.0,0.14033567]
[1641142466174,0.1613271,47652.0,47642.0,0.14033567]
[1641142467777,0.14033567,47652.0,47642.0,0.14033567]
[1641142468778,0.14033567,47652.0,47642.0,0.16132356]
[1641142469382,0.35703457,47643.0,47642.0,0.16132356]
[1641142469584,0.35703457,47643.0,47642.0,0.14033567]
[1641142470682,0.35703457,47643.0,47642.0,0.15226122]
[1641142471283,0.35703457,47644.0,47642.0,0.15226122]
[1641142471682,0.35703457,47644.0,47642.0,0.14033567]
[1641142472083,0.35703457,47643.0,47642.0,0.14033567]
[1641142473283,0.35703457,47643.0,47642.0,0.32033567]
[1641142473483,0.35703457,47643.0,47642.0,0.15226106]
[1641142474387,0.35703457,47645.0,47642.0,1.7313905]
[1641142474986,0.35703457,47645.0,47643.0,0.01192539]
[1641142475386,0.35703457,47645.0,47643.0,1.42973185]
[1641142475786,0.35703457,47645.0,47643.0,1.41780646]
[1641142476086,0.35703457,47646.0,47643.0,1.41780646]
[1641142476290,0.35703457,47646.0,47645.0,0.18]
[1641142477188,0.59505762,47647.0,47645.0,0.18]
[1641142478188,0.59505762,47647.0,47646.0,0.20098578]
[1641142478389,0.59505762,47648.0,47646.0,0.18]
[1641142478587,0.59505762,47648.0,47647.0,0.18]
[1641142479289,0.59505762,47649.0,47647.0,0.18]
[1641142479491,0.59505762,47649.0,47648.0,0.18]
[1641142480289,0.59505762,47649.0,47648.0,0.14033567]
[1641142480491,0.59505762,47649.0,47648.0,0.16132086]
[1641142483895,0.59505762,47649.0,47648.0,0.34132086]
[1641142484493,0.59505762,47649.0,47648.0,0.14033567]
[1641142485595,0.59505762,47649.0,47648.0,0.16132069]
[1641142486398,0.59505762,47650.0,47648.0,0.16132069]
[1641142487601,0.59505762,47650.0,47649.0,0.20098374]
[1641142487803,0.07966401,47653.0,47649.0,1.31577774]
[1641142488001,1.43118762,47660.0,47653.0,1.105]
[1641142488200,1.5455941,47667.0,47659.0,0.18]
[1641142488402,0.55103425,47676.0,47666.0,0.62197717]
[1641142488603,1.65859653,47678.0,47675.0,0.18]
[1641142488801,1.49949653,47678.0,47675.0,0.20096687]
[1641142489002,0.17137424,47678.0,47677.0,1.1269656]
[1641142489304,0.05797424,47678.0,47677.0,1.1269656]
[1641142489500,1.73925169,47689.0,47677.0,1.2019256]
[1641142489705,1.35735169,47689.0,47677.0,1.2019256]
[1641142489901,1.27315169,47689.0,47677.0,1.2019256]
[1641142490103,1.00715169,47689.0,47677.0,1.2019256]
[1641142490301,0.90695169,47689.0,47677.0,1.2019256]
[1641142490602,0.69595169,47689.0,47677.0,1.3003217]
[1641142490802,1.3266741,47682.0,47678.0,0.01192347]
[1641142491005,0.6823741,47682.0,47678.0,0.01192347]
[1641142491202,0.4461741,47682.0,47678.0,0.01192347]
[1641142491403,0.55188818,47689.0,47678.0,0.01192347]
[1641142491702,1.45090797,47699.0,47678.0,0.01192347]
[1641142491906,1.21820797,47699.0,47678.0,0.01192347]
[1641142492104,0.86520797,47699.0,47678.0,0.01192347]
[1641142492302,0.47910797,47699.0,47688.0,0.18]
[1641142492504,0.20440797,47699.0,47688.0,0.18]
[1641142492728,0.58735169,47710.0,47688.0,0.18]
[1641142492729,0.38315169,47710.0,47688.0,0.60100701]
[1641142492904,0.24964084,47720.0,47688.0,0.76193509]
[1641142493105,0.987,47729.0,47688.0,0.92286317]
[1641142493403,0.69747513,47729.0,47688.0,0.92286317]
[1641142493609,0.5896,47741.0,47688.0,1.16746317]
[1641142493805,0.12474586,47742.0,47703.0,0.2214319]
[1641142494005,0.03196045,47777.0,47719.0,0.30785195]
[1641142494217,0.40800265,47787.0,47728.0,0.19717551]
[1641142494408,0.08800266,47787.0,47771.0,0.1864]
[1641142494605,0.02,47803.0,47771.0,0.1864]
[1641142494606,0.79690266,47798.0,47783.0,0.18]
[1641142494806,0.79690266,47798.0,47797.0,0.42100701]
[1641142494807,0.77890266,47798.0,47797.0,0.42100701]
[1641142495006,0.77890266,47798.0,47797.0,0.48984701]
[1641142495007,0.72690266,47798.0,47797.0,0.48984701]
[1641142495207,0.58290266,47798.0,47797.0,0.48984701]
[1641142495603,0.58290266,47798.0,47797.0,3.39826272]
[1641142495804,0.58290266,47798.0,47797.0,0.48984701]
[1641142496005,0.58290266,47798.0,47795.0,1.36760637]
[1641142496204,0.54090266,47798.0,47797.0,0.05949]
[1641142496404,0.54090266,47798.0,47797.0,0.08040941]
[1641142496605,0.54090266,47798.0,47788.0,1.48157356]
[1641142496807,0.02092825,47796.0,47788.0,1.48157356]
[1641142497010,0.14033567,47789.0,47788.0,1.48157356]
[1641142497204,0.14033567,47790.0,47777.0,1.59554076]
[1641142497205,0.40882595,47790.0,47777.0,1.59554076]
[1641142497405,0.009794,47789.0,47765.0,0.14033567]
[1641142498105,0.00882595,47790.0,47787.0,0.0209242]
[1641142498306,0.009794,47794.0,47765.0,0.14033567]
[1641142498506,0.009794,47794.0,47780.0,0.02092699]
[1641142498807,0.009794,47794.0,47791.0,0.02092233]
[1641142499005,0.54090266,47798.0,47793.0,0.16225645]
[1641142499204,0.54090266,47798.0,47797.0,0.001]
[1641142499406,0.02091593,47824.0,47797.0,0.20191711]
[1641142499611,1.2548,47827.0,47802.0,0.181]
[1641142499805,1.2548,47827.0,47815.0,0.18]
[1641142500004,1.2548,47827.0,47815.0,0.07728]
[1641142500406,0.4,47821.0,47815.0,0.07728]
[1641142500605,0.02092121,47816.0,47794.0,0.02092121]
[1641142500807,0.08368486,47826.0,47793.0,0.14033567]
[1641142501007,0.14033567,47805.0,47789.0,0.14033567]
[1641142501207,0.4,47798.0,47792.0,1.58773378]
[1641142501407,0.4,47797.0,47778.0,0.02]
[1641142501608,0.20215567,47805.0,47772.0,0.02093076]
[1641142501609,0.02093076,47793.0,47772.0,0.02093076]
[1641142501806,0.4,47788.0,47778.0,1.5917783]
[1641142502008,0.4,47788.0,47772.0,0.02093076]
[1641142502210,0.09131076,47793.0,47767.0,1.70547675]
[1641142502211,0.02093344,47784.0,47767.0,1.70547675]
[1641142502408,0.009794,47787.0,47770.0,1.59348056]
[1641142502610,0.4,47771.0,47759.0,1.7073006]
[1641142502811,0.009794,47770.0,47759.0,1.7073006]
[1641142503110,0.009794,47770.0,47759.0,0.06]
[1641142503310,0.4,47795.0,47762.0,0.18]
[1641142503508,0.8,47808.0,47762.0,0.26074]
[1641142503709,0.02093239,47786.0,47767.0,0.02093239]
[1641142503908,0.02093362,47783.0,47765.0,0.02093362]
[1641142504109,0.009794,47785.0,47762.0,0.08074]
[1641142504310,0.009794,47785.0,47769.0,0.02093158]
[1641142504609,0.009794,47785.0,47762.0,0.08074]
[1641142504812,0.009794,47785.0,47764.0,0.06]
[1641142505010,0.07328,47810.0,47762.0,0.08074]
[1641142505011,0.14033567,47789.0,47783.0,0.02092567]
[1641142505410,0.14033567,47789.0,47777.0,0.0832]
[1641142506010,0.14033567,47789.0,47777.0,0.10412841]
[1641142506211,0.19790567,47789.0,47766.0,0.14033567]
[1641142506411,0.009794,47788.0,47769.0,1.18923462]
[1641142506611,0.0209342,47781.0,47769.0,1.18923462]
[1641142506810,0.009794,47784.0,47769.0,1.18923462]
[1641142507010,0.14033567,47775.0,47769.0,1.36923462]
[1641142507213,0.14033567,47775.0,47769.0,1.26378462]
[1641142507611,0.14033567,47775.0,47769.0,0.07455]
[1641142507826,0.009794,47784.0,47769.0,0.07455]
[1641142508726,0.009794,47784.0,47760.0,0.14033567]
[1641142508926,0.009794,47784.0,47772.0,0.02093023]
[1641142508927,0.14033567,47780.0,47772.0,0.02093023]
[1641142509127,0.14033567,47780.0,47777.0,0.29959236]
[1641142509327,0.14033567,47780.0,47770.0,0.14033567]
[1641142512828,0.14033567,47780.0,47770.0,0.32033567]
[1641142513031,0.14033567,47780.0,47770.0,0.14033567]
[1641142513429,0.12833564,47780.0,47772.0,0.18]
[1641142513633,0.14033567,47789.0,47779.0,0.18]
[1641142513831,0.4,47819.0,47780.0,1.105]
[1641142514031,0.4,47819.0,47784.0,0.18]
[1641142514230,0.009794,47802.0,47787.0,0.02092397]
[1641142514929,0.14033567,47797.0,47786.0,0.14033567]
[1641142515142,0.14033567,47797.0,47781.0,0.14033567]
[1641142515143,0.02093009,47791.0,47781.0,0.02092666]
[1641142515331,0.009794,47796.0,47770.0,0.18]
[1641142515332,0.23068567,47797.0,47770.0,0.18]
[1641142515631,0.001,47791.0,47772.0,0.179]
[1641142515832,0.010794,47790.0,47776.0,0.179]
[1641142516132,0.001,47787.0,47776.0,0.179]
[1641142516531,0.010794,47790.0,47776.0,0.179]
[1641142516734,0.02093134,47787.0,47777.0,0.179]
[1641142516935,0.14033567,47780.0,47778.0,0.179]
[1641142517135,0.14033567,47785.0,47778.0,0.29793217]
[1641142517336,0.14033567,47797.0,47784.0,1.464]
[1641142517537,0.14033567,47797.0,47793.0,0.179]
[1641142517739,0.14033567,47797.0,47779.0,0.11893217]
[1641142517937,0.009794,47801.0,47796.0,0.179]
[1641142518137,0.009794,47807.0,47796.0,0.05978]
[1641142518537,0.009794,47807.0,47797.0,0.11890669]
[1641142518738,0.02091886,47816.0,47802.0,0.179]
[1641142519038,0.14033567,47814.0,47810.0,0.179]
[1641142519238,0.14033567,47814.0,47799.0,0.14033567]
[1641142519439,0.14033567,47814.0,47806.0,0.179]
[1641142519637,0.14033567,47814.0,47799.0,0.14033567]
[1641142519839,0.14033567,47814.0,47802.0,0.179]
[1641142520037,0.14033567,47814.0,47804.0,0.179]
[1641142520241,0.14033567,47814.0,47803.0,0.11889712]
[1641142520438,0.14033567,47814.0,47806.0,0.02091523]
[1641142520740,0.14033567,47814.0,47804.0,0.13981308]
[1641142520939,0.14033567,47814.0,47809.0,0.179]
[1641142521339,0.14033567,47814.0,47804.0,0.02091596]
[1641142521540,0.001,47813.0,47793.0,0.12]
[1641142521740,0.02092001,47813.0,47795.0,1.12592001]
[1641142521939,0.14033567,47814.0,47802.0,0.179]
[1641142522141,0.14033567,47814.0,47798.0,0.11889944]
[1641142522340,0.14033567,47814.0,47807.0,0.059]
[1641142522743,0.14033567,47814.0,47808.0,0.11889944]
[1641142523742,0.14033567,47814.0,47813.0,0.179]
[1641142523940,0.14033567,47819.0,47813.0,1.35744]
[1641142524144,0.14033567,47822.0,47815.0,0.179]
[1641142524342,0.14033567,47822.0,47818.0,0.179]
[1641142524542,0.1054,47845.0,47821.0,0.179]
[1641142524743,3.8144,47848.0,47826.0,0.179]
[1641142524943,3.8144,47848.0,47826.0,1.284]
[1641142525143,1e-08,47827.0,47826.0,0.179]
[1641142525643,1e-08,47827.0,47824.0,0.14033567]
[1641142525844,1e-08,47827.0,47825.0,1.105]
[1641142526144,1e-08,47827.0,47826.0,1.284]
[1641142526544,1e-08,47827.0,47826.0,0.179]
[1641142526743,1e-08,47827.0,47826.0,0.33450889]
[1641142526943,1e-08,47827.0,47826.0,1.75403689]
[1641142527246,1e-08,47827.0,47826.0,1.60074757]
[1641142527443,0.14033567,47854.0,47826.0,2.40074757]
[1641142527647,1.8508,47883.0,47853.0,1.105]
[1641142527843,1.8298,47883.0,47864.0,1.105]
[1641142528047,0.261794,47884.0,47870.0,0.18]
[1641142528244,1.9516,47901.0,47872.0,0.18]
[1641142528445,0.363,47911.0,47879.0,0.02]
[1641142528646,0.02088851,47886.0,47880.0,0.217]
[1641142528946,0.001,47881.0,47879.0,0.02]
[1641142529146,0.16122348,47888.0,47879.0,0.02]
[1641142529347,0.14033567,47888.0,47879.0,0.02]
[1641142529747,0.0208913,47880.0,47872.0,0.14033567]
[1641142529948,0.02089433,47880.0,47854.0,0.82089433]
[1641142530148,0.14033567,47888.0,47837.0,0.02090205]
[1641142530149,0.363,47866.0,47837.0,0.02090205]
[1641142530349,0.02090549,47855.0,47832.0,0.217]
[1641142530549,0.02090549,47855.0,47828.0,0.040906]
[1641142530550,0.10763549,47855.0,47839.0,0.217]
[1641142530748,0.08673,47855.0,47846.0,0.217]
[1641142530947,0.08673,47855.0,47852.0,0.02089557]
[1641142531146,0.08673,47855.0,47854.0,0.217]
[1641142531347,0.08673,47855.0,47853.0,0.001609]
[1641142531546,0.14033567,47856.0,47854.0,0.34393]
[1641142531749,0.14033567,47866.0,47855.0,0.037]
[1641142532048,0.363,47902.0,47865.0,0.217]
[1641142532248,0.02088946,47884.0,47866.0,0.02088946]
[1641142532448,0.02089085,47881.0,47862.0,0.02089085]
[1641142532648,0.02089085,47881.0,47862.0,0.03068485]
[1641142533150,0.14033567,47872.0,47867.0,0.217]
[1641142533747,0.14033567,47872.0,47862.0,0.15012967]
[1641142533948,0.14033567,47872.0,47863.0,0.18]
[1641142534148,0.14033567,47872.0,47871.0,0.217]
[1641142534950,0.14033567,47882.0,47871.0,0.217]
[1641142535151,0.14033567,47876.0,47870.0,0.02088758]
[1641142535353,0.14033567,47876.0,47875.0,0.217]
[1641142535753,0.14033567,47876.0,47872.0,0.3327245]
[1641142535951,0.02089372,47874.0,47865.0,0.33466627]
[1641142536151,0.02089529,47873.0,47865.0,0.33466627]
[1641142536551,0.001,47868.0,47865.0,0.33466627]
[1641142536752,0.001,47866.0,47865.0,0.33466627]
[1641142537050,0.37528134,47866.0,47865.0,0.33466627]
[1641142537651,0.37428134,47866.0,47865.0,0.33466627]
[1641142538051,0.37428134,47866.0,47859.0,1.43966627]
[1641142538452,0.37428134,47866.0,47859.0,1.65666627]
[1641142538651,0.37428134,47866.0,47859.0,1.43966627]
[1641142538853,0.37428134,47866.0,47865.0,0.217]
[1641142539052,1.09234962,47866.0,47865.0,1.53268342]
[1641142539252,1.54632596,47873.0,47865.0,1.53268342]
[1641142539453,1.54632596,47873.0,47872.0,1.502]
[1641142539652,1.54632596,47873.0,47872.0,1.331794]
[1641142540053,1.54632596,47873.0,47872.0,0.009794]
[1641142540255,1.54632596,47873.0,47867.0,1.322]
[1641142540856,0.14033567,47876.0,47867.0,0.55166627]
[1641142541053,0.14033567,47871.0,47867.0,0.55166627]
[1641142541453,0.14033567,47871.0,47867.0,0.33466627]
[1641142541654,0.02089707,47868.0,47867.0,0.33466627]
[1641142541855,0.09045707,47868.0,47863.0,0.78112068]
[1641142542055,0.06956,47868.0,47852.0,0.032]
[1641142542255,0.06956,47868.0,47862.0,0.33530884]
[1641142542455,0.001,47863.0,47862.0,0.33530884]
[1641142543055,0.14133567,47863.0,47852.0,0.032]
[1641142543256,0.14033567,47863.0,47856.0,0.217]
[1641142543460,0.14033567,47863.0,47852.0,1.137]
[1641142543461,0.14033567,47863.0,47852.0,0.032]
[1641142544056,0.14033567,47863.0,47856.0,0.217]
[1641142544658,1.42531707,47857.0,47856.0,0.217]
[1641142545258,1.56565274,47857.0,47856.0,0.217]